[Event "*** Titled Tuesday 3|2 Blitz"]
[Site "Chess.com"]
[Date "2017.03.07"]
[Round "9"]
[White "P0ubelle"]
[Black "Hanging_pointer"]
[Result "0-1"]
[WhiteElo "2042"]
[BlackElo "2279"]
[TimeControl "180+2"]
[EndTime "15:05:24 PST"]
[Termination "Hanging_pointer won by resignation"]

1. e4 {[%clk 0:03:01.7]} 1... c5 {[%clk 0:03:00.6]} 2. Nf3 {[%clk 0:03:02.5]}
2... d6 {[%clk 0:03:01.5]} 3. Bb5+ {[%clk 0:03:03.2]} 3... Bd7 {[%clk
0:03:02.3]} 4. Bxd7+ {[%clk 0:03:04.3]} 4... Qxd7 {[%clk 0:03:04.2]} 5. O-O
{[%clk 0:03:05.1]} 5... Nf6 {[%clk 0:03:02.6]} 6. Qe2 {[%clk 0:03:06]} 6... e6
{[%clk 0:03:02.9]} 7. Rd1 {[%clk 0:03:06.7]} 7... Nc6 {[%clk 0:02:54.4]} 8. c3
{[%clk 0:03:06.9]} 8... Be7 {[%clk 0:02:54.3]} 9. c4 {[%clk 0:03:04.6]} 9... e5
{[%clk 0:02:52.3]} 10. Nc3 {[%clk 0:03:04.7]} 10... Nd4 {[%clk 0:02:53.6]} 11.
Nxd4 {[%clk 0:03:05.3]} 11... cxd4 {[%clk 0:02:54]} 12. Nd5 {[%clk 0:03:06.1]}
12... Nxd5 {[%clk 0:02:55.4]} 13. exd5 {[%clk 0:03:07]} 13... O-O {[%clk
0:02:56.4]} 14. d3 {[%clk 0:03:08.3]} 14... f5 {[%clk 0:02:56.9]} 15. f4 {[%clk
0:03:08.8]} 15... Bf6 {[%clk 0:02:57.2]} 16. Rf1 {[%clk 0:03:07.2]} 16... Rae8
{[%clk 0:02:57.7]} 17. fxe5 {[%clk 0:03:05.2]} 17... dxe5 {[%clk 0:02:59.6]} 18.
Qf3 {[%clk 0:03:03.8]} 18... g6 {[%clk 0:02:40.1]} 19. Bh6 {[%clk 0:02:55]}
19... e4 {[%clk 0:02:41]} 20. Qe2 {[%clk 0:02:53.3]} 20... Bg7 {[%clk
0:02:27.9]} 21. Bxg7 {[%clk 0:02:53.5]} 21... Qxg7 {[%clk 0:02:29.8]} 22. dxe4
{[%clk 0:02:28.6]} 22... fxe4 {[%clk 0:02:27.1]} 23. Rxf8+ {[%clk 0:02:29.5]}
23... Qxf8 {[%clk 0:02:28.1]} 24. Rf1 {[%clk 0:02:30.6]} 24... Qg7 {[%clk
0:01:57.4]} 25. b4 {[%clk 0:02:23.7]} 25... Qe5 {[%clk 0:01:33.7]} 26. Qf2
{[%clk 0:02:21.1]} 26... e3 {[%clk 0:01:34.9]} 27. Qf7+ {[%clk 0:02:14.9]} 27...
Kh8 {[%clk 0:01:34.3]} 28. c5 {[%clk 0:02:04.2]} 28... e2 {[%clk 0:01:30.9]} 29.
Re1 {[%clk 0:02:04.9]} 29... d3 {[%clk 0:01:28.9]} 30. d6 {[%clk 0:01:41.9]}
30... d2 {[%clk 0:01:29.6]} 0-1

[Event "*** Titled Tuesday 3|2 Blitz"]
[Site "Chess.com"]
[Date "2017.03.07"]
[Round "9"]
[White "LuckyTiger"]
[Black "VerdeNotte"]
[Result "0-1"]
[WhiteElo "2500"]
[BlackElo "2573"]
[TimeControl "180+2"]
[EndTime "15:05:58 PST"]
[Termination "VerdeNotte won by resignation"]

1. e4 {[%clk 0:03:01.9]} 1... c5 {[%clk 0:02:58.9]} 2. c3 {[%clk 0:03:03]} 2...
d5 {[%clk 0:02:59.2]} 3. exd5 {[%clk 0:03:04]} 3... Qxd5 {[%clk 0:03:01.1]} 4.
d4 {[%clk 0:03:05.6]} 4... Nc6 {[%clk 0:03:02.4]} 5. Nf3 {[%clk 0:03:05.6]} 5...
Bf5 {[%clk 0:03:03.5]} 6. Be3 {[%clk 0:03:05.7]} 6... e6 {[%clk 0:02:58.7]} 7.
Be2 {[%clk 0:02:50.8]} 7... cxd4 {[%clk 0:02:55.9]} 8. Nxd4 {[%clk 0:02:39.8]}
8... Nxd4 {[%clk 0:02:32.3]} 9. Bxd4 {[%clk 0:02:41.7]} 9... Ne7 {[%clk
0:02:32.5]} 10. Bf3 {[%clk 0:02:18.5]} 10... Be4 {[%clk 0:02:29.2]} 11. Nd2
{[%clk 0:02:19.8]} 11... Bxf3 {[%clk 0:02:29.8]} 12. Qxf3 {[%clk 0:02:21.7]}
12... Qxf3 {[%clk 0:02:26.9]} 13. Nxf3 {[%clk 0:02:23.6]} 13... Nf5 {[%clk
0:02:28.1]} 14. Be5 {[%clk 0:02:16.7]} 14... f6 {[%clk 0:02:25.9]} 15. Bf4
{[%clk 0:02:17.3]} 15... g5 {[%clk 0:02:24.7]} 16. Bd2 {[%clk 0:02:16.6]} 16...
g4 {[%clk 0:02:24.9]} 17. Ng1 {[%clk 0:02:17.2]} 17... O-O-O {[%clk 0:02:16.7]}
18. g3 {[%clk 0:02:01.8]} 18... Bc5 {[%clk 0:02:14.8]} 19. Rd1 {[%clk
0:01:24.4]} 19... h5 {[%clk 0:02:06.9]} 20. h3 {[%clk 0:01:20.1]} 20... h4
{[%clk 0:02:00]} 21. hxg4 {[%clk 0:00:29.1]} 21... hxg3 {[%clk 0:02:00.5]} 22.
Rxh8 {[%clk 0:00:31]} 22... gxf2+ {[%clk 0:02:01.3]} 23. Ke2 {[%clk 0:00:32.5]}
23... Rxh8 {[%clk 0:01:36]} 0-1

[Event "*** Titled Tuesday 3|2 Blitz"]
[Site "Chess.com"]
[Date "2017.03.07"]
[Round "9"]
[White "SCIM"]
[Black "VMikhalevski"]
[Result "0-1"]
[WhiteElo "2317"]
[BlackElo "2548"]
[TimeControl "180+2"]
[EndTime "15:06:05 PST"]
[Termination "VMikhalevski won by resignation"]

1. d4 {[%clk 0:03:02]} 1... Nf6 {[%clk 0:03:00.3]} 2. c4 {[%clk 0:03:02]} 2...
g6 {[%clk 0:03:01.3]} 3. Nc3 {[%clk 0:03:02.9]} 3... d5 {[%clk 0:03:02.4]} 4.
Bg5 {[%clk 0:03:03.6]} 4... Bg7 {[%clk 0:03:00.5]} 5. Bxf6 {[%clk 0:03:04.4]}
5... Bxf6 {[%clk 0:03:01.2]} 6. cxd5 {[%clk 0:03:05.4]} 6... c5 {[%clk
0:03:01.7]} 7. dxc5 {[%clk 0:02:59.5]} 7... O-O {[%clk 0:02:57.4]} 8. Qd2 {[%clk
0:02:42.7]} 8... Nd7 {[%clk 0:02:54.1]} 9. Ne4 {[%clk 0:02:41.8]} 9... Bg7
{[%clk 0:02:48.9]} 10. Nf3 {[%clk 0:02:38.8]} 10... f5 {[%clk 0:02:47.1]} 11.
Neg5 {[%clk 0:02:28]} 11... Nxc5 {[%clk 0:02:47.6]} 12. Rc1 {[%clk 0:02:20.1]}
12... Qb6 {[%clk 0:02:43.7]} 13. e3 {[%clk 0:02:04.8]} 13... h6 {[%clk
0:02:42.8]} 14. Ne6 {[%clk 0:02:01.9]} 14... Nxe6 {[%clk 0:02:41.4]} 15. dxe6
{[%clk 0:02:01.4]} 15... Bxe6 {[%clk 0:02:38.9]} 16. Bc4 {[%clk 0:01:47.3]}
16... Bxc4 {[%clk 0:02:37.7]} 17. Rxc4 {[%clk 0:01:46.1]} 17... Rac8 {[%clk
0:02:24.3]} 18. O-O {[%clk 0:01:24.2]} 18... Rxc4 {[%clk 0:02:17]} 19. Qd5+
{[%clk 0:01:23.8]} 19... Kh7 {[%clk 0:02:17.7]} 20. Qxc4 {[%clk 0:01:23.7]}
20... Qxb2 {[%clk 0:02:18.7]} 21. h4 {[%clk 0:01:23.1]} 21... Bf6 {[%clk
0:01:54.4]} 22. Rd1 {[%clk 0:01:19.5]} 22... a5 {[%clk 0:01:42.4]} 23. Rd7
{[%clk 0:01:14.6]} 23... b5 {[%clk 0:01:38.9]} 24. Qe6 {[%clk 0:01:11.9]} 24...
Qc1+ {[%clk 0:01:36.2]} 25. Kh2 {[%clk 0:01:10.6]} 25... Qc4 {[%clk 0:01:37.2]}
26. Qxc4 {[%clk 0:00:55.3]} 26... bxc4 {[%clk 0:01:38.1]} 27. Rc7 {[%clk
0:00:56.8]} 27... c3 {[%clk 0:01:38]} 28. Nd4 {[%clk 0:00:53.6]} 28... Be5+
{[%clk 0:01:38]} 0-1

[Event "*** Titled Tuesday 3|2 Blitz"]
[Site "Chess.com"]
[Date "2017.03.07"]
[Round "9"]
[White "saraswathii"]
[Black "VeraNebolsina"]
[Result "0-1"]
[WhiteElo "2142"]
[BlackElo "1833"]
[TimeControl "180+2"]
[EndTime "15:06:27 PST"]
[Termination "VeraNebolsina won by resignation"]

1. e4 {[%clk 0:03:02]} 1... c5 {[%clk 0:03:00.1]} 2. Nf3 {[%clk 0:02:58.7]} 2...
d6 {[%clk 0:03:00.7]} 3. d3 {[%clk 0:02:59]} 3... g6 {[%clk 0:02:56.6]} 4. g3
{[%clk 0:02:59]} 4... Bg7 {[%clk 0:02:57.4]} 5. Bg2 {[%clk 0:02:59.4]} 5... e5
{[%clk 0:02:57.8]} 6. O-O {[%clk 0:02:57.3]} 6... Ne7 {[%clk 0:02:59]} 7. c3
{[%clk 0:02:57.1]} 7... Nbc6 {[%clk 0:02:59.1]} 8. h3 {[%clk 0:02:56.1]} 8...
O-O {[%clk 0:02:59.4]} 9. a3 {[%clk 0:02:57.2]} 9... a5 {[%clk 0:02:42.7]} 10.
a4 {[%clk 0:02:48.3]} 10... h6 {[%clk 0:02:41.6]} 11. Nh4 {[%clk 0:02:44.8]}
11... Kh7 {[%clk 0:02:14.2]} 12. Na3 {[%clk 0:02:32.6]} 12... f5 {[%clk
0:02:11.3]} 13. exf5 {[%clk 0:02:31.2]} 13... Nxf5 {[%clk 0:01:56.4]} 14. Nf3
{[%clk 0:02:16.8]} 14... Be6 {[%clk 0:01:48.5]} 15. Nc2 {[%clk 0:02:13]} 15...
d5 {[%clk 0:01:36.9]} 16. Re1 {[%clk 0:02:07.4]} 16... Qd7 {[%clk 0:01:35.7]}
17. Kh2 {[%clk 0:01:56.2]} 17... Rae8 {[%clk 0:01:35.9]} 18. Ne3 {[%clk
0:01:40.3]} 18... Nd6 {[%clk 0:01:29.7]} 19. Nh4 {[%clk 0:01:32.1]} 19... Rxf2
{[%clk 0:01:27.5]} 20. Rf1 {[%clk 0:01:26.3]} 20... Rxf1 {[%clk 0:01:24.7]} 21.
Qxf1 {[%clk 0:01:28.2]} 21... Rf8 {[%clk 0:01:25.3]} 22. Qe2 {[%clk 0:01:23.5]}
22... e4 {[%clk 0:01:18.9]} 23. dxe4 {[%clk 0:01:11.6]} 23... dxe4 {[%clk
0:01:19.8]} 24. Bd2 {[%clk 0:01:04.2]} 24... g5 {[%clk 0:01:20.2]} 25. Nhf5
{[%clk 0:00:34]} 25... Bxf5 {[%clk 0:01:17]} 0-1

[Event "*** Titled Tuesday 3|2 Blitz"]
[Site "Chess.com"]
[Date "2017.03.07"]
[Round "9"]
[White "Vamostodorecto"]
[Black "jk13"]
[Result "0-1"]
[WhiteElo "2388"]
[BlackElo "2491"]
[TimeControl "180+2"]
[EndTime "15:06:28 PST"]
[Termination "jk13 won by resignation"]

1. d4 {[%clk 0:03:02]} 1... Nf6 {[%clk 0:03:00.6]} 2. c4 {[%clk 0:03:02.7]} 2...
e6 {[%clk 0:03:02.3]} 3. Nc3 {[%clk 0:03:04]} 3... Bb4 {[%clk 0:03:03.9]} 4. e3
{[%clk 0:03:05.3]} 4... O-O {[%clk 0:03:03.4]} 5. Bd3 {[%clk 0:03:04.8]} 5... d5
{[%clk 0:03:04.3]} 6. a3 {[%clk 0:03:00.5]} 6... Bxc3+ {[%clk 0:02:55.8]} 7.
bxc3 {[%clk 0:03:02.4]} 7... c5 {[%clk 0:02:54.8]} 8. cxd5 {[%clk 0:03:02.1]}
8... exd5 {[%clk 0:02:52.7]} 9. Ne2 {[%clk 0:03:02.7]} 9... b6 {[%clk
0:02:52.1]} 10. O-O {[%clk 0:03:02.6]} 10... Ba6 {[%clk 0:02:53.7]} 11. f3
{[%clk 0:03:00.6]} 11... Re8 {[%clk 0:02:54.3]} 12. Ng3 {[%clk 0:03:00.3]} 12...
Qc8 {[%clk 0:02:52.1]} 13. Ra2 {[%clk 0:02:59.2]} 13... Bxd3 {[%clk 0:02:51.6]}
14. Qxd3 {[%clk 0:02:58.8]} 14... Qa6 {[%clk 0:02:53.3]} 15. Qb1 {[%clk
0:02:51]} 15... Qc4 {[%clk 0:02:53.2]} 16. Nf5 {[%clk 0:02:35.1]} 16... Re6
{[%clk 0:02:35.2]} 17. e4 {[%clk 0:02:06.5]} 17... dxe4 {[%clk 0:02:18.3]} 18.
fxe4 {[%clk 0:02:08.4]} 18... Nxe4 {[%clk 0:02:15.9]} 19. d5 {[%clk 0:01:11.8]}
19... Qxd5 {[%clk 0:01:52.7]} 20. Bh6 {[%clk 0:00:46.6]} 20... gxh6 {[%clk
0:01:35.4]} 21. c4 {[%clk 0:00:19.8]} 21... Qe5 {[%clk 0:01:27.1]} 22. Re2
{[%clk 0:00:17.6]} 22... Nd7 {[%clk 0:01:23.7]} 23. Ng3 {[%clk 0:00:11.3]} 23...
Qd4+ {[%clk 0:01:24.2]} 0-1

[Event "*** Titled Tuesday 3|2 Blitz"]
[Site "Chess.com"]
[Date "2017.03.07"]
[Round "9"]
[White "FlameOak4464"]
[Black "MateusViageiro"]
[Result "0-1"]
[WhiteElo "1775"]
[BlackElo "2220"]
[TimeControl "180+2"]
[EndTime "15:06:45 PST"]
[Termination "MateusViageiro won by resignation"]

1. e4 {[%clk 0:03:02]} 1... c5 {[%clk 0:03:00.5]} 2. Nf3 {[%clk 0:03:01.8]} 2...
d6 {[%clk 0:03:01.6]} 3. d4 {[%clk 0:03:01.9]} 3... cxd4 {[%clk 0:03:02.7]} 4.
Nxd4 {[%clk 0:03:01.3]} 4... Nf6 {[%clk 0:03:03.6]} 5. Nc3 {[%clk 0:03:01.1]}
5... a6 {[%clk 0:03:04.7]} 6. f3 {[%clk 0:02:55.8]} 6... Qb6 {[%clk 0:02:59]} 7.
Bc4 {[%clk 0:02:48.4]} 7... Nc6 {[%clk 0:02:57.3]} 8. Nb3 {[%clk 0:02:40.4]}
8... e6 {[%clk 0:02:57]} 9. Bg5 {[%clk 0:02:33.9]} 9... Be7 {[%clk 0:02:51.3]}
10. Qd2 {[%clk 0:02:30.9]} 10... h6 {[%clk 0:02:50.7]} 11. Be3 {[%clk 0:02:31]}
11... Qc7 {[%clk 0:02:50.8]} 12. g4 {[%clk 0:02:29.6]} 12... Ne5 {[%clk
0:02:48.7]} 13. Be2 {[%clk 0:02:21.2]} 13... Nc4 {[%clk 0:02:48.6]} 14. Bxc4
{[%clk 0:02:21.3]} 14... Qxc4 {[%clk 0:02:49.5]} 15. h4 {[%clk 0:02:19.1]} 15...
b5 {[%clk 0:02:49.3]} 16. O-O-O {[%clk 0:02:17.5]} 16... Nd7 {[%clk 0:02:45.9]}
17. Bf4 {[%clk 0:01:50.3]} 17... Ne5 {[%clk 0:02:42.7]} 18. Rdf1 {[%clk
0:01:39.3]} 18... Qc7 {[%clk 0:02:37.7]} 19. h5 {[%clk 0:01:30.2]} 19... f6
{[%clk 0:02:25.3]} 20. Bg3 {[%clk 0:01:22]} 20... Bd7 {[%clk 0:02:21.8]} 21. Qd1
{[%clk 0:01:14.6]} 21... Rc8 {[%clk 0:02:20.9]} 22. f4 {[%clk 0:01:13.6]} 22...
Nc4 {[%clk 0:02:20.7]} 23. Re1 {[%clk 0:01:10.7]} 23... Nxb2 {[%clk 0:02:18.7]}
24. Kxb2 {[%clk 0:01:04.1]} 24... Qxc3+ {[%clk 0:02:19.3]} 25. Kb1 {[%clk
0:01:03.7]} 25... Qxg3 {[%clk 0:02:19.9]} 26. Rhg1 {[%clk 0:01:00.5]} 26... Qxf4
{[%clk 0:02:20.6]} 27. Qe2 {[%clk 0:00:46.7]} 27... Qe5 {[%clk 0:02:20.2]} 28.
Nc1 {[%clk 0:00:20.9]} 28... Qc3 {[%clk 0:02:13.1]} 29. Rd1 {[%clk 0:00:18.6]}
29... O-O {[%clk 0:02:09.2]} 30. Rd3 {[%clk 0:00:18.8]} 30... Qc4 {[%clk
0:02:10.3]} 31. Rgd1 {[%clk 0:00:15.5]} 31... b4 {[%clk 0:02:10.8]} 32. Nb3
{[%clk 0:00:14.1]} 32... Bb5 {[%clk 0:02:09.1]} 33. Rd4 {[%clk 0:00:11.7]} 33...
Qxe2 {[%clk 0:02:09.3]} 0-1

[Event "*** Titled Tuesday 3|2 Blitz"]
[Site "Chess.com"]
[Date "2017.03.07"]
[Round "9"]
[White "GeorgMeier"]
[Black "eldur16"]
[Result "1-0"]
[WhiteElo "2719"]
[BlackElo "2341"]
[TimeControl "180+2"]
[EndTime "15:06:48 PST"]
[Termination "GeorgMeier won by resignation"]

1. Nf3 {[%clk 0:03:02]} 1... Nf6 {[%clk 0:03:00]} 2. g3 {[%clk 0:03:03.3]} 2...
b6 {[%clk 0:03:00.3]} 3. Bg2 {[%clk 0:03:04.5]} 3... Bb7 {[%clk 0:03:01.4]} 4.
c4 {[%clk 0:03:05.9]} 4... c5 {[%clk 0:03:02.4]} 5. O-O {[%clk 0:03:07]} 5... g6
{[%clk 0:03:03.4]} 6. b3 {[%clk 0:03:06.1]} 6... Bg7 {[%clk 0:03:04.2]} 7. Bb2
{[%clk 0:03:07.7]} 7... O-O {[%clk 0:03:05.3]} 8. Nc3 {[%clk 0:03:09]} 8... d6
{[%clk 0:03:04.6]} 9. d4 {[%clk 0:03:05.8]} 9... cxd4 {[%clk 0:03:04.9]} 10.
Qxd4 {[%clk 0:03:06.9]} 10... Nbd7 {[%clk 0:03:05.4]} 11. Rfd1 {[%clk
0:03:07.2]} 11... a6 {[%clk 0:03:04.9]} 12. Ne1 {[%clk 0:02:57.4]} 12... Bxg2
{[%clk 0:03:04.2]} 13. Nxg2 {[%clk 0:02:58.4]} 13... Re8 {[%clk 0:02:59.6]} 14.
Ne3 {[%clk 0:02:57.6]} 14... Qb8 {[%clk 0:02:58.9]} 15. Ncd5 {[%clk 0:02:40.9]}
15... b5 {[%clk 0:02:56.1]} 16. Rac1 {[%clk 0:02:41.3]} 16... Nc5 {[%clk
0:02:50.6]} 17. Qd2 {[%clk 0:02:05.4]} 17... Nfe4 {[%clk 0:02:41.3]} 18. Qc2
{[%clk 0:02:06.1]} 18... Bxb2 {[%clk 0:02:34.6]} 19. Qxb2 {[%clk 0:02:06.9]}
19... bxc4 {[%clk 0:01:36.7]} 20. Rxc4 {[%clk 0:02:07]} 20... e6 {[%clk
0:01:26]} 21. Nf6+ {[%clk 0:02:04.5]} 21... Nxf6 {[%clk 0:01:26.1]} 22. Qxf6
{[%clk 0:02:06.4]} 22... Nd7 {[%clk 0:01:26.1]} 23. Qc3 {[%clk 0:01:31]} 23...
Ne5 {[%clk 0:01:05]} 24. Rc7 {[%clk 0:01:16.6]} 24... d5 {[%clk 0:00:43.9]} 25.
Qxe5 {[%clk 0:01:06.2]} 1-0

[Event "*** Titled Tuesday 3|2 Blitz"]
[Site "Chess.com"]
[Date "2017.03.07"]
[Round "9"]
[White "GMMarcinDziuba"]
[Black "Tash_Boy"]
[Result "1-0"]
[WhiteElo "2474"]
[BlackElo "2501"]
[TimeControl "180+2"]
[EndTime "15:07:35 PST"]
[Termination "GMMarcinDziuba won by resignation"]

1. d4 {[%clk 0:03:02]} 1... Nf6 {[%clk 0:03:00.4]} 2. c4 {[%clk 0:03:02.9]} 2...
g6 {[%clk 0:03:01.2]} 3. Nc3 {[%clk 0:03:03.6]} 3... Bg7 {[%clk 0:03:02]} 4. e4
{[%clk 0:03:04.6]} 4... d6 {[%clk 0:03:02.5]} 5. h3 {[%clk 0:03:00.3]} 5... O-O
{[%clk 0:03:02.6]} 6. Nf3 {[%clk 0:03:01.2]} 6... e5 {[%clk 0:03:03.3]} 7. d5
{[%clk 0:03:01.9]} 7... Nh5 {[%clk 0:03:03.6]} 8. g3 {[%clk 0:03:01.6]} 8... Na6
{[%clk 0:02:58.5]} 9. Be2 {[%clk 0:02:52.1]} 9... Qe8 {[%clk 0:02:49.8]} 10. Be3
{[%clk 0:02:45.9]} 10... f5 {[%clk 0:02:48.3]} 11. exf5 {[%clk 0:02:41.1]} 11...
gxf5 {[%clk 0:02:48.4]} 12. Ng5 {[%clk 0:02:42.2]} 12... Nf6 {[%clk 0:02:47.8]}
13. g4 {[%clk 0:02:43.3]} 13... f4 {[%clk 0:02:45.4]} 14. Bd2 {[%clk 0:02:39.2]}
14... Qg6 {[%clk 0:02:43.6]} 15. Ne6 {[%clk 0:02:32.9]} 15... Bxe6 {[%clk
0:02:40.7]} 16. dxe6 {[%clk 0:02:34.8]} 16... Nc5 {[%clk 0:02:41.4]} 17. h4
{[%clk 0:02:25.6]} 17... Nd3+ {[%clk 0:02:31.1]} 18. Bxd3 {[%clk 0:02:22.6]}
18... Qxd3 {[%clk 0:02:31.2]} 19. g5 {[%clk 0:01:44.1]} 19... Ne4 {[%clk
0:02:29.6]} 20. Qe2 {[%clk 0:01:38.8]} 20... Qxe2+ {[%clk 0:02:19.4]} 21. Kxe2
{[%clk 0:01:38.8]} 21... Nxc3+ {[%clk 0:02:19.8]} 22. Bxc3 {[%clk 0:01:40.7]}
22... Rae8 {[%clk 0:02:19.2]} 23. Kf3 {[%clk 0:01:41.9]} 23... Rxe6 {[%clk
0:02:18.9]} 24. Ke4 {[%clk 0:01:43.4]} 24... c6 {[%clk 0:02:15]} 25. Rad1 {[%clk
0:01:43.7]} 25... b5 {[%clk 0:02:13.9]} 26. b3 {[%clk 0:01:43]} 26... f3 {[%clk
0:01:39.6]} 27. Bd2 {[%clk 0:01:44]} 27... h5 {[%clk 0:01:31]} 28. Be3 {[%clk
0:01:36.8]} 28... Kh7 {[%clk 0:01:29.7]} 29. Rd2 {[%clk 0:01:35.2]} 29... bxc4
{[%clk 0:01:21.8]} 30. bxc4 {[%clk 0:01:35.5]} 30... Rf7 {[%clk 0:01:15.1]} 31.
Rb1 {[%clk 0:01:17]} 31... Kg6 {[%clk 0:01:15]} 32. a4 {[%clk 0:01:17.8]} 32...
Bf8 {[%clk 0:01:08.5]} 33. a5 {[%clk 0:01:19]} 33... Re8 {[%clk 0:00:49.6]} 34.
a6 {[%clk 0:01:18.8]} 34... Rd8 {[%clk 0:00:47.5]} 35. Rb7 {[%clk 0:01:07.2]}
35... Rdd7 {[%clk 0:00:38.6]} 36. Rb8 {[%clk 0:01:08.1]} 36... Rfe7 {[%clk
0:00:26.9]} 37. Rxf8 {[%clk 0:01:07.7]} 1-0

[Event "*** Titled Tuesday 3|2 Blitz"]
[Site "Chess.com"]
[Date "2017.03.07"]
[Round "9"]
[White "Marreuh"]
[Black "AlexZambrano"]
[Result "1/2-1/2"]
[WhiteElo "2106"]
[BlackElo "2282"]
[TimeControl "180+2"]
[EndTime "15:08:18 PST"]
[Termination "Game drawn by repetition"]

1. e4 {[%clk 0:03:02]} 1... e5 {[%clk 0:03:00.3]} 2. f4 {[%clk 0:03:00.4]} 2...
Nc6 {[%clk 0:03:00.8]} 3. Nf3 {[%clk 0:02:59.9]} 3... f5 {[%clk 0:03:01.9]} 4.
exf5 {[%clk 0:02:56.8]} 4... e4 {[%clk 0:03:00.1]} 5. Ne5 {[%clk 0:02:50.8]}
5... Nxe5 {[%clk 0:03:00.6]} 6. fxe5 {[%clk 0:02:52.7]} 6... Qe7 {[%clk
0:03:02.1]} 7. Qh5+ {[%clk 0:02:43.1]} 7... Kd8 {[%clk 0:03:03]} 8. Nc3 {[%clk
0:02:29.2]} 8... Qxe5 {[%clk 0:03:03.4]} 9. Bc4 {[%clk 0:02:17.6]} 9... Nf6
{[%clk 0:03:03.6]} 10. Qf7 {[%clk 0:01:56]} 10... Bc5 {[%clk 0:02:47.7]} 11.
Qxg7 {[%clk 0:01:30.2]} 11... Rf8 {[%clk 0:02:47.8]} 12. Nd5 {[%clk 0:01:12.5]}
12... c6 {[%clk 0:02:24.8]} 13. Nxf6 {[%clk 0:01:12.7]} 13... Rxf6 {[%clk
0:02:25.8]} 14. Rf1 {[%clk 0:01:07.2]} 14... d5 {[%clk 0:02:04.3]} 15. Be2
{[%clk 0:01:07.5]} 15... Bd7 {[%clk 0:01:32.5]} 16. d4 {[%clk 0:01:08.3]} 16...
exd3 {[%clk 0:01:32.1]} 17. cxd3 {[%clk 0:01:00.8]} 17... Rxf5 {[%clk
0:01:05.4]} 18. Qg8+ {[%clk 0:00:36.3]} 18... Kc7 {[%clk 0:00:24.6]} 19. Qxa8
{[%clk 0:00:34.8]} 19... Rxf1+ {[%clk 0:00:18.5]} 20. Kxf1 {[%clk 0:00:30.1]}
20... Qxh2 {[%clk 0:00:19.3]} 21. Bf3 {[%clk 0:00:20]} 21... Qg1+ {[%clk
0:00:19.1]} 22. Ke2 {[%clk 0:00:21.3]} 22... Qf2+ {[%clk 0:00:20.2]} 23. Kd1
{[%clk 0:00:22.6]} 23... Bc8 {[%clk 0:00:20.2]} 24. Bf4+ {[%clk 0:00:23]} 24...
Kd7 {[%clk 0:00:21.6]} 25. Qb8 {[%clk 0:00:20.8]} 25... Qf1+ {[%clk 0:00:13.5]}
26. Kd2 {[%clk 0:00:21.9]} 26... Qf2+ {[%clk 0:00:12.6]} 27. Be2 {[%clk
0:00:21.7]} 27... Bb4+ {[%clk 0:00:07.8]} 28. Kc2 {[%clk 0:00:22.3]} 28... Qxe2+
{[%clk 0:00:08.7]} 29. Kb3 {[%clk 0:00:22.6]} 29... Qxd3+ {[%clk 0:00:09.9]} 30.
Kxb4 {[%clk 0:00:23.3]} 30... Qc4+ {[%clk 0:00:10.8]} 31. Ka3 {[%clk 0:00:24.2]}
31... Qc5+ {[%clk 0:00:11.9]} 32. Kb3 {[%clk 0:00:25.3]} 32... Qc4+ {[%clk
0:00:12.2]} 33. Ka3 {[%clk 0:00:26.6]} 33... Qc5+ {[%clk 0:00:13.1]} 34. Kb3
{[%clk 0:00:28.1]} 34... Qc4+ {[%clk 0:00:14.2]} 35. Ka3 {[%clk 0:00:29.4]}
35... Qc5+ {[%clk 0:00:10.6]} 1/2-1/2

[Event "*** Titled Tuesday 3|2 Blitz"]
[Site "Chess.com"]
[Date "2017.03.07"]
[Round "9"]
[White "Robin-Side"]
[Black "IMcoach"]
[Result "0-1"]
[WhiteElo "2425"]
[BlackElo "2328"]
[TimeControl "180+2"]
[EndTime "15:08:26 PST"]
[Termination "IMcoach won by checkmate"]

1. d4 {[%clk 0:03:02]} 1... Nf6 {[%clk 0:03:00.7]} 2. Nc3 {[%clk 0:03:03.2]}
2... d6 {[%clk 0:03:01.3]} 3. e4 {[%clk 0:03:04.5]} 3... g6 {[%clk 0:03:02.8]}
4. Be2 {[%clk 0:03:05.9]} 4... Bg7 {[%clk 0:03:03.5]} 5. g4 {[%clk 0:03:07.4]}
5... c5 {[%clk 0:03:00.4]} 6. g5 {[%clk 0:03:08.5]} 6... Nfd7 {[%clk 0:03:00.4]}
7. d5 {[%clk 0:03:09.1]} 7... Na6 {[%clk 0:02:54.5]} 8. h4 {[%clk 0:03:09.4]}
8... Nc7 {[%clk 0:02:49.3]} 9. a4 {[%clk 0:03:05.1]} 9... a6 {[%clk 0:02:49.3]}
10. h5 {[%clk 0:03:06.1]} 10... Rb8 {[%clk 0:02:50.3]} 11. h6 {[%clk 0:03:03]}
11... Bxc3+ {[%clk 0:02:50.1]} 12. bxc3 {[%clk 0:03:03.6]} 12... b5 {[%clk
0:02:40.7]} 13. axb5 {[%clk 0:03:03.4]} 13... axb5 {[%clk 0:02:30.9]} 14. c4
{[%clk 0:03:03.3]} 14... bxc4 {[%clk 0:02:28.1]} 15. Bxc4 {[%clk 0:02:55.3]}
15... O-O {[%clk 0:02:12.9]} 16. f4 {[%clk 0:02:36.1]} 16... Rb4 {[%clk
0:02:05]} 17. Bd3 {[%clk 0:02:22]} 17... e6 {[%clk 0:01:54.2]} 18. dxe6 {[%clk
0:02:15]} 18... Nxe6 {[%clk 0:01:41.2]} 19. Nf3 {[%clk 0:02:10.3]} 19... Bb7
{[%clk 0:01:40.5]} 20. Qe2 {[%clk 0:01:52.4]} 20... d5 {[%clk 0:01:19.4]} 21. e5
{[%clk 0:01:41.4]} 21... Rxf4 {[%clk 0:01:08.5]} 22. Bxf4 {[%clk 0:01:38.8]}
22... Nxf4 {[%clk 0:01:09.7]} 23. Qd2 {[%clk 0:01:29.2]} 23... Ne6 {[%clk
0:00:57.8]} 24. Ba6 {[%clk 0:01:06.9]} 24... Ba8 {[%clk 0:00:51.9]} 25. Be2
{[%clk 0:01:01.4]} 25... d4 {[%clk 0:00:50.6]} 26. O-O {[%clk 0:00:39.2]} 26...
Bxf3 {[%clk 0:00:45.4]} 27. Bxf3 {[%clk 0:00:41.1]} 27... Nxe5 {[%clk
0:00:46.6]} 28. Bg2 {[%clk 0:00:37]} 28... Nc4 {[%clk 0:00:40.8]} 29. Qc1 {[%clk
0:00:20.6]} 29... Ne3 {[%clk 0:00:40.2]} 30. Rf2 {[%clk 0:00:21.5]} 30... Qxg5
{[%clk 0:00:38.1]} 31. c3 {[%clk 0:00:07.6]} 31... Nf4 {[%clk 0:00:35]} 32. cxd4
{[%clk 0:00:04.4]} 32... Nh3+ {[%clk 0:00:22.2]} 33. Kh2 {[%clk 0:00:05.6]}
33... Nxf2 {[%clk 0:00:22]} 34. d5 {[%clk 0:00:04.8]} 34... Qxg2# {[%clk
0:00:19.3]} 0-1